[Event "34th Pula Open 2022"]
[Site "Pula"]
[Date "2022.06.22"]
[Round "6.5"]
[White "Seres, Bela"]
[Black "Jahncke, Giso"]
[Result "1-0"]
[ECO "D00"]
[WhiteElo "2164"]
[BlackElo "2321"]
[Annotator "TA"]
[PlyCount "141"]
[EventDate "2022.06.18"]
[EventType "swiss"]
[EventCountry "CRO"]
[SourceTitle "playchess.com"]
[Source "ChessBase"]
[SourceQuality "1"]
[TimeControl "5400+30"]

{[%evp 9,141,0,6,-3,1,-19,-17,-19,-18,-26,-15,-38,-26,-43,-41,-43,-35,-43,-25,-47,-13,-19,6,-104,-95,-237,-232,-216,-230,-238,-246,-246,-195,-259,-275,-306,-304,-256,-275,-278,-280,-373,-356,-428,-395,-484,-487,-487,-420,-488,-487,-480,-472,-487,-451,-455,-449,-443,-250,-243,-264,-255,-253,-231,-34,-516,-370,-906,-361,-382,-154,-154,-145,-152,-145,-155,-132,-208,-206,-222,-215,-294,-233,-212,-166,-172,-164,-156,0,0,0,0,0,0,0,0,0,0,0,-8,-8,-151,-15,-72,0,-168,-8,-66,-66,-66,-66,-67,0,0,8,8,390,369,29956,12796,29981,29982,29987,29983,29981,29984,29984,29985,29984,29984,29984,29983,29992,29993]} 1. d4 {[%emt 0:00:08]} d5 {[%emt 0:00:17]} 2. Bf4 {[%emt 0:00:06]} c5 {[%emt 0:00:54]} 3. e3 {[%emt 0:00:08]} Nc6 {[%emt 0:01:03]} 4. c3 {[%emt 0:00:24]} Nf6 {[%emt 0:00:35]} 5. Nd2 {[%emt 0:00:22]} Bf5 {[%emt 0:00:54]} 6. Ngf3 {[%emt 0:03:13] D00: 1 d4 d5: Unusual lines.} Qb6 {[%emt 0:07:20]} 7. Qb3 {[%emt 0:00:05]} c4 {[%emt 0:00:35]} 8. Qxb6 {[%emt 0:00:09] The position is equal.} axb6 {[%emt 0:00:06]} 9. a3 {[%emt 0:00:12]} b5 {[%emt 0:01:17]} 10. Rc1 {[%emt 0:00:51]} h6 {[%emt 0:03:23]} 11. h3 {[%emt 0:02:41] The main line 11.h3 scores better than 11.Be2.} Nd7 {[%emt 0:01:02]} 12. Be2 {[%emt 0:06:45]} g5 {[%emt 0:02:04]} 13. Bh2 {[%emt 0:09:54] [#]} f6 $146 {[%emt 0:06:03]} ({Predecessor:} 13... Bg7 14. O-O O-O 15. Rfe1 Bg6 16. Bd1 f5 17. Bc2 Kf7 18. Nf1 e6 19. Bd6 Rh8 20. g3 Ra6 21. Bb4 Bf6 22. Kg2 h5 23. h4 g4 {½-½ (23) Mostbauer,F (2296)-Haba,P (2458) Traun 2017}) 14. O-O {[%emt 0:03:39]} e5 {[%emt 0:05:26]} 15. Ne1 {[%emt 0:01:56]} Bg6 {[%emt 0:04:14] Against Bh5} 16. f4 {[%emt 0:05:17]} (16. Bf3 $11) 16... gxf4 $17 {[%emt 0:12:16]} 17. exf4 {[%emt 0:12:54]} (17. Nc2 $17) 17... exd4 $19 {[%emt 0:00:44]} 18. cxd4 {[%emt 0:07:17]} Nxd4 {[%emt 0:00:39]} 19. Bf3 {[%emt 0:00:58]} Nc5 {[%emt 0:04:31]} (19... Bc5 20. Kh1) 20. f5 {[%emt 0:02:24]} Bf7 {[%emt 0:00:54]} (20... Bxf5 21. Bh5+ Ke7 22. Kh1 $17) 21. Kh1 {[%emt 0:00:23]} (21. Nc2 $142 Nxf3+ 22. Rxf3) 21... O-O-O {[%emt 0:02:20]} 22. Bg1 {[%emt 0:01:56]} Ndb3 {[%emt 0:01:19]} (22... Nxf5 23. Bg4 $18) 23. Nxb3 {[%emt 0:02:34]} Nxb3 {[%emt 0:01:08]} 24. Rd1 {[%emt 0:03:31]} d4 {[%emt 0:15:07][%cal Bd5d4,Bd4d3][%mdl 32]} 25. Be4 {[%emt 0:12:15]} Nc5 {[%emt 0:00:30][%cal Bb3c5,Bc5e4,Be4g3,Bg3e2][%mdl 32]} 26. Bb1 {[%emt 0:07:57]} d3 {[%emt 0:00:33]} 27. Nf3 {[%emt 0:00:36]} Ne4 {[%emt 0:00:55]} 28. Rfe1 {[%emt 0:00:15]} Ng3+ {[%emt 0:00:35]} 29. Kh2 {[%emt 0:00:41]} Bd6 {[%emt 0:01:41]} 30. Bb6 {[%emt 0:00:32]} Rde8 {[%emt 0:03:24]} 31. Kg1 {[%emt 0:01:10]} Ne2+ {[%emt 0:00:36]} 32. Kf1 {[%emt 0:01:21]} Bg3 {[%emt 0:04:10]} 33. Bf2 {[%emt 0:00:14]} Bh5 {[%emt 0:01:18]} (33... Rhg8 $142 34. Ba2 Rd8 35. Bxg3 Rxg3) 34. Bxd3 {[%emt 0:01:41]} cxd3 {[%emt 0:00:56]} 35. Rxd3 {[%emt 0:00:06]} Bxf2 {[%emt 0:00:50]} 36. Kxf2 {[%emt 0:00:31]} Nf4 {[%emt 0:01:13]} ({Black should play} 36... Bxf3 $19 37. Rxf3 Nd4 38. Rc3+ Nc6 39. Rxe8+ Rxe8) 37. Rc1+ $2 {[%emt 0:03:04][%mdl 8192]} (37. Rd4 $1 $15) 37... Kb8 {[%emt 0:00:16]} 38. Rd7 {[%emt 0:00:44]} (38. Rd2) 38... Rd8 $2 {[%emt 0:03:15]} (38... Rhg8 39. g4 Nxh3+ 40. Kg3 Nf4 $1 {[%mdl 512]}) 39. Rcd1 {[%emt 0:01:32]} Kc8 {[%emt 0:03:10]} (39... Rdg8 $19 40. Rg1 Rc8) 40. R7d4 $17 {[%emt 0:01:08]} Bxf3 {[%emt 0:01:21]} 41. Kxf3 {[%emt 0:00:05]} Nh5 $1 {[%emt 0:00:31]} 42. Rc1+ {[%emt 0:02:51]} Kb8 {[%emt 0:00:05]} 43. Rxd8+ {[%emt 0:02:07]} (43. Rcd1 $17 Rxd4 44. Rxd4) 43... Rxd8 {[%emt 0:00:05][%mdl 4096] Endgame KRN-KR} 44. g4 {[%emt 0:00:19]} Ng7 {[%emt 0:00:20]} 45. Rc5 {[%emt 0:00:01]} b4 {[%emt 0:00:24]} 46. axb4 {[%emt 0:00:13]} Ne8 {[%emt 0:02:02]} 47. Kg3 {[%emt 0:00:39]} Rd3+ {[%emt 0:00:55]} 48. Kh4 {[%emt 0:00:07]} Nd6 $2 {[%emt 0:00:18] Inhibits Rc4.} (48... Ng7 $1 $17 {Threatens to win with ...Rd4.} 49. Rc4 Rd2) 49. Rc3 $1 $11 {[%emt 0:01:04]} Rd4 {[%emt 0:03:52]} 50. Kh5 {[%emt 0:00:30]} Rxb4 {[%emt 0:01:19]} 51. b3 {[%emt 0:01:11]} Ne4 {[%emt 0:00:41]} 52. Re3 {[%emt 0:00:34]} Kc7 {[%emt 0:00:46]} 53. Kxh6 {[%emt 0:00:24]} Kd6 {[%emt 0:00:11]} 54. Kg6 {[%emt 0:02:59]} Ke5 {[%emt 0:00:47]} 55. Rf3 {[%emt 0:02:11]} (55. h4 $11) 55... Ng5 {[%emt 0:01:41]} ({Black should try} 55... Rd4 $1 $17 {And now ...b5 would win.} 56. Re3 b5) 56. Re3+ {[%emt 0:00:12]} (56. Rd3 $11) 56... Ne4 {[%emt 0:00:54]} (56... Kf4 $17 57. Rc3 Rb6) 57. Rf3 $19 {[%emt 0:00:13] [#]} Nc5 $2 {[%emt 0:01:40]} (57... Rd4 $1 $19 {...b5 is the strong threat.} 58. Re3 b5) 58. Re3+ {[%emt 0:00:57]} (58. Rc3 $11 Ne4 59. Rf3) 58... Kf4 $15 {[%emt 0:01:55]} 59. Rc3 {[%emt 0:01:00]} Ne4 {[%emt 0:00:14]} ({But not} 59... Nxb3 60. Kxf6 Nd4 61. Kg6 $11) 60. Rd3 {[%emt 0:00:28]} b5 {[%emt 0:02:24]} ({Better is} 60... Nf2 $15 61. Rc3 Ne4) 61. g5 $11 Nc5 {[%emt 0:02:05]} 62. Rc3 {[%emt 0:01:11]} Ne4 $2 {[%emt 0:00:00][%mdl 8192]} (62... Nd7 $11 {and Black is okay.}) 63. gxf6 $18 {[%emt 0:00:18] Black must now prevent f7.} Nd6 $2 {[%emt 0:00:00]} (63... Nxc3 $2 64. f7 Rxb3 65. f8=Q $18 (65. f6 Ne4 $16)) (63... Rd4 $18) 64. Rd3 {[%emt 0:00:37]} ({Less strong is} 64. f7 Nxf7 65. Kxf7 Kxf5 $16) 64... Ke5 {[%emt 0:00:00] [#]} 65. Rxd6 $1 {[%emt 0:00:18][%mdl 512] White mates.} Rxb3 {[%emt 0:00:16] KR-KR} (65... Kxd6 66. f7) 66. f7 {[%emt 0:00:34]} Rg3+ {[%emt 0:00:04]} 67. Kh7 {[%emt 0:00:01]} Kxd6 {[%emt 0:00:59]} 68. f8=Q+ {[%emt 0:00:03]} Kd5 {[%emt 0:00:07]} 69. h4 {[%emt 0:00:17]} Rh3 {[%emt 0:00:16]} 70. Kg6 {[%emt 0:00:42]} Rxh4 {[%emt 0:00:09]} 71. Qd8+ {[%emt 0:00:02] Never resign too early!  Weighted Error Value: White=0.45/Black=0.45} 1-0

[Event "34th Pula Open 2022"]
[Site "Pula"]
[Date "2022.06.22"]
[Round "6.6"]
[White "Stankovic, Boris"]
[Black "Jurakic, Lukas"]
[Result "1-0"]
[ECO "B94"]
[WhiteElo "2287"]
[BlackElo "2147"]
[Annotator "TA"]
[PlyCount "147"]
[EventDate "2022.06.18"]
[EventType "swiss"]
[EventCountry "CRO"]
[SourceTitle "playchess.com"]
[Source "ChessBase"]
[SourceQuality "1"]
[TimeControl "5400+30"]

{[%evp 13,147,0,31,0,42,0,0,0,0,0,1,-7,-19,-57,-29,-79,-83,-122,-112,-116,-102,-109,-81,-84,-58,-58,-54,-53,-28,-53,41,40,81,51,138,74,126,113,149,132,227,195,275,257,268,256,382,317,350,208,531,541,514,515,570,530,609,609,616,613,583,520,1062,718,882,660,850,514,544,520,528,520,667,579,740,419,405,326,540,528,522,450,755,708,681,547,464,248,248,248,388,358,580,512,624,616,663,642,574,551,789,643,1846,1651,2985,2500,29963,29967,29965,29966,29974,29975,29969,29969,29977,29978,29978,12699,12718,12718,29979,29980,29980,199,206,8,29985,29986,29986,29987,29987,29986,29992,29993,29993,29994]} 1. e4 {[%emt 0:00:50]} c5 {[%emt 0:00:07]} 2. Nf3 {[%emt 0:00:04]} d6 {[%emt 0:00:08]} 3. d4 {[%emt 0:00:30]} cxd4 {[%emt 0:00:07]} 4. Nxd4 {[%emt 0:00:06]} Nf6 {[%emt 0:00:08]} 5. Nc3 {[%emt 0:00:25]} a6 {[%emt 0:00:09]} 6. Bg5 {[%emt 0:00:37]} Nbd7 {[%emt 0:00:14]} 7. f4 {[%emt 0:00:17]} Qc7 {[%emt 0:00:23]} 8. Qf3 {[%emt 0:01:24] B94: Sicilian Najdorf: 6 Bg5 Nbd7.} h6 {[%emt 0:00:17] 8...b5 might become the main line.} 9. Bh4 {[%emt 0:03:33]} (9. Bxf6 $5 Nxf6 10. f5 $11) 9... g5 $1 {[%emt 0:00:12]} 10. fxg5 {[%emt 0:03:29] The position is equal.} hxg5 {[%emt 0:00:09]} 11. Bxg5 {[%emt 0:04:55]} Qc5 $1 {[%emt 0:00:24][%csl LRd4,LRg5]} 12. Nf5 {[%emt 0:18:35]} e6 $1 {[%emt 0:00:33]} 13. Bxf6 {[%emt 0:07:42]} Nxf6 {[%emt 0:00:09]} 14. Ng3 {[%emt 0:13:57]} (14. Ne3 $11) 14... Nd7 $17 {[%emt 0:08:55][%mdl 1024] Black has strong compensation.} 15. O-O-O {[%emt 0:07:44]} Ne5 {[%emt 0:07:45]} 16. Qe2 {[%emt 0:00:06]} b5 {[%emt 0:15:45][%cal Bb7b5,Bb5b4][%mdl 32] Strongly threatening ...b4.} 17. Kb1 {[%emt 0:02:15] [#]} b4 $146 {[%emt 0:18:27]} ({Predecessor:} 17... Bd7 18. Nh5 Be7 19. g4 b4 20. Nd5 exd5 21. Rxd5 Bxg4 22. Qd2 Qb6 23. Ng7+ Kf8 {0-1 (32) Shukh,N (2413)-Savchenko,S (2502) St Petersburg 2011}) 18. Na4 {[%emt 0:00:15]} Qa5 {[%emt 0:06:45]} 19. b3 {[%emt 0:00:17]} Bd7 {[%emt 0:00:57]} 20. Nb2 {[%emt 0:03:39]} Ke7 {[%emt 0:14:36]} 21. Qd2 {[%emt 0:05:50]} (21. Nc4 $2 Nxc4 22. Qxc4 Bg7 $19) 21... Kd8 {[%emt 0:04:37]} (21... Ke8 22. Nd3 $14) ({Black should try} 21... Qc5 $1 $15) 22. Ne2 {[%emt 0:06:55]} Rc8 {[%emt 0:02:52]} 23. Nc1 {[%emt 0:03:36]} Rc3 {[%emt 0:03:16]} (23... Bc6 $14) 24. Qd4 {[%emt 0:02:11]} (24. Nc4 $142 Qc5 25. Nxd6 Bxd6 26. Qxd6 Qxd6 27. Rxd6) 24... Rg8 {[%emt 0:01:12]} (24... Qc5 $142) 25. Ncd3 $16 {[%emt 0:01:27]} Nc6 {[%emt 0:01:08]} 26. Qf2 {[%emt 0:01:12] Dancing on a razor blade.} Ke8 {[%emt 0:00:39] [#]} (26... Ne5 $16) 27. Be2 $1 $18 {[%emt 0:02:00]} (27. Na4 Rxd3 28. Bxd3 Qe5) 27... Qg5 {[%emt 0:03:16]} (27... Bg7 $142) 28. Rhf1 {[%emt 0:00:57]} (28. Na4 $6 Rxd3 29. cxd3 (29. Bxd3 Qe5 $18) 29... Qxg2 $18) 28... Nd8 {[%emt 0:00:57]} 29. g4 {[%emt 0:01:47]} ({Don't take} 29. Nxb4 $6 a5 $18) 29... a5 {[%emt 0:02:50]} (29... Bc6 $142 30. h4 (30. Nxb4 Bxe4 31. Bxa6 Qc5 $18) 30... Qa5) 30. h4 {[%emt 0:00:01]} Qb5 {[%emt 0:01:29]} 31. Nf4 {[%emt 0:00:55]} (31. g5 $142) 31... Qc6 $2 {[%emt 0:00:20]} (31... Qc5 32. Nc4 Qxf2 33. Rxf2 Be7) 32. Nh5 {[%emt 0:00:39] aiming for Nf6+.} Be7 {[%emt 0:00:26]} 33. Nc4 {[%emt 0:01:06] Pair of Knights!} Rg6 {[%emt 0:03:45] Inhibits Nf6+.} 34. Bd3 {[%emt 0:04:18]} e5 {[%emt 0:00:31]} 35. g5 {[%emt 0:01:38]} Bg4 {[%emt 0:01:37]} 36. Be2 {[%emt 0:01:05]} Bxe2 {[%emt 0:01:29]} 37. Qxe2 {[%emt 0:00:01]} Qc5 {[%emt 0:01:18]} (37... Rxc4 $142 38. bxc4 a4) 38. Rd5 {[%emt 0:00:26]} Qc7 {[%emt 0:00:27]} 39. Qf2 {[%emt 0:00:57]} a4 {[%emt 0:00:49]} 40. Qf5 {[%emt 0:01:47][%cal Rc4e5] Against Rh3. Nxe5! is the strong threat.} Rxc4 {[%emt 0:00:26]} 41. bxc4 {[%emt 0:00:02]} Qxc4 {[%emt 0:00:13]} 42. Qf3 {[%emt 0:00:44] Inhibits b3.} Rg8 {[%emt 0:00:47]} 43. Ng3 {[%emt 0:00:40]} Kd7 {[%emt 0:00:33]} 44. Qd3 {[%emt 0:00:34]} Qxd3 {[%emt 0:00:31]} 45. Rxd3 {[%emt 0:00:24]} Ke6 $2 {[%emt 0:00:26]} (45... Rh8 {is a better defense.} 46. Nf5 Ne6) 46. Nf5 {[%emt 0:00:19]} Nc6 {[%emt 0:00:21]} 47. Nxd6 {[%emt 0:00:42]} Bxd6 {[%emt 0:00:44]} (47... f6 $142 48. Nb5 Nd4) 48. Rf6+ {[%emt 0:00:01]} Ke7 {[%emt 0:00:01]} 49. Rfxd6 {[%emt 0:00:29]} Nd4 {[%emt 0:00:20]} 50. R6xd4 {[%emt 0:00:19]} (50. Ra6 $142) 50... exd4 {[%emt 0:00:01]} 51. Rxd4 {[%emt 0:00:08][%mdl 4096] Endgame KR-KR} Rb8 {[%emt 0:00:11]} (51... Rh8 $142 52. Rxb4 Rxh4 53. Rxa4 Rg4) 52. Kb2 {[%emt 0:00:18]} Ke6 $2 {[%emt 0:00:23]} (52... Rh8 53. Rxb4 Rxh4 54. Rxa4 Rg4) 53. h5 {[%emt 0:00:09]} Ke5 {[%emt 0:00:12]} 54. Rd7 {[%emt 0:00:17]} Kf4 {[%emt 0:01:10]} 55. Rxf7+ {[%emt 0:00:37]} Kxg5 {[%emt 0:00:10]} 56. Rf5+ {[%emt 0:00:42]} Kh6 {[%emt 0:00:40]} 57. Ra5 {[%emt 0:00:05]} Re8 {[%emt 0:00:36]} 58. Rxa4 {[%emt 0:00:34]} Rxe4 {[%emt 0:00:07]} 59. Kb3 {[%emt 0:00:10]} Kxh5 {[%emt 0:00:12]} 60. Rxb4 {[%emt 0:00:07]} Re3+ {[%emt 0:00:17]} 61. c3 {[%emt 0:00:12]} Kg5 {[%emt 0:00:29]} 62. a4 {[%emt 0:00:15][%cal Ba2a4,Ba4a5,Ba5a6,Ba6a7][%mdl 32]} Kf6 {[%emt 0:00:19]} 63. a5 {[%emt 0:00:29]} Re8 {[%emt 0:00:27]} 64. a6 {[%emt 0:00:45]} Ke5 {[%emt 0:00:44]} 65. Kc4 {[%emt 0:00:59]} (65. a7 $142 Ra8 66. Ra4 Kd6 67. Kc4 Kc7 68. Ra6 Kd8 69. Kc5 Kc7 70. c4) 65... Kd6 {[%emt 0:00:32]} 66. a7 {[%emt 0:01:18] Rb8 would kill now.} Ra8 {[%emt 0:00:15]} 67. Ra4 {[%emt 0:00:05]} Kc6 {[%emt 0:00:12] [#]} 68. Ra6+ $2 {[%emt 0:00:16]} (68. Kb4 $1 {mates} Kb7 69. Kb5 Kc7 70. c4 Kb7 71. c5 Kc7 72. Rh4 Kd7 73. Rh6) 68... Kb7 {[%emt 0:02:14]} 69. Kb5 $2 {[%emt 0:00:07]} (69. Ra2 $18 {And now Ra3 would win.} Rc8+ 70. Kb5) 69... Kc7 $2 {[%emt 0:00:29][%mdl 8192] A mistake that costs the game.} (69... Rxa7 $11 70. Rxa7+ Kxa7 71. Kc6 Kb8 72. c4 Kc8 73. c5 Kd8 74. Kb7 Ke7) 70. c4 {[%emt 0:00:05][%cal Bc3c4,Bc4c5][%mdl 32] White mates.} Kb7 {[%emt 0:00:07]} 71. c5 {[%emt 0:00:15]} Kc7 {[%emt 0:00:08]} 72. Rh6 {[%emt 0:00:43]} Kb7 {[%emt 0:01:39]} 73. Rh7+ {[%emt 0:00:07]} Kc8 {[%emt 0:00:03]} 74. Kc6 {[%emt 0:00:13] Weighted Error Value: White=0.43/Black=0.69} 1-0

[Event "34th Pula Open 2022"]
[Site "Pula"]
[Date "2022.06.22"]
[Round "6.7"]
[White "Rubil, Marko"]
[Black "Cvitan, Ena"]
[Result "1/2-1/2"]
[ECO "B12"]
[WhiteElo "2272"]
[BlackElo "2251"]
[Annotator "TA"]
[PlyCount "32"]
[EventDate "2022.06.18"]
[EventType "swiss"]
[EventCountry "CRO"]
[SourceTitle "playchess.com"]
[Source "ChessBase"]
[SourceQuality "1"]
[TimeControl "5400+30"]

{[%evp 9,32,9,14,0,14,18,20,-23,-35,-49,-51,-58,-62,-69,-61,-60,-49,-49,-49,-53,-42,-102,-47,-82,-42]} 1. e4 {[%emt 0:00:03]} c6 {[%emt 0:02:53]} 2. d4 {[%emt 0:00:06]} d5 {[%emt 0:00:08]} 3. e5 {[%emt 0:00:04]} Bf5 {[%emt 0:00:10]} 4. c4 {[%emt 0:00:12]} e6 {[%emt 0:00:16]} 5. Nc3 {[%emt 0:00:07]} Ne7 {[%emt 0:00:36][%cal Oc6c5]} 6. h3 {[%emt 0:00:08] B12: Caro-Kann: Advance Variation.} h6 {[%emt 0:00:29]} 7. Nf3 {[%emt 0:00:13]} Be4 {[%emt 0:00:15] [#]} 8. c5 $146 {[%emt 0:36:33] The position is equal.} ({Much worse is} 8. Nxe4 dxe4 9. Ng1 c5 $17) ({Predecessor:} 8. cxd5 Bxd5 9. Nxd5 Nxd5 10. a3 Nd7 11. Bc4 Be7 12. O-O N7b6 13. Bd3 Qd7 14. Bd2 {½-½ (33) Petrov,M (2522)-Fernandez,D (2349) Paleochora 2012}) 8... Bxf3 {[%emt 0:09:55]} 9. Qxf3 {[%emt 0:00:30]} b6 {[%emt 0:00:17]} 10. cxb6 {[%emt 0:01:13]} Qxb6 {[%emt 0:01:14]} 11. Qd3 {[%emt 0:20:46]} Nf5 {[%emt 0:02:05]} 12. Be3 {[%emt 0:00:06]} Nxe3 {[%emt 0:10:02]} ({Of course not} 12... Qxb2 13. Rb1 Qa3 14. Bd2 $11) 13. fxe3 {[%emt 0:00:01]} Be7 {[%emt 0:02:09]} 14. O-O-O {[%emt 0:09:27]} Nd7 {[%emt 0:06:21]} 15. Qa6 {[%emt 0:02:36]} (15. h4 $15) 15... O-O {[%emt 0:12:18]} (15... Bg5 $17 16. Kb1 Bxe3) 16. Kb1 $15 {[%emt 0:08:24]} Rab8 {[%emt 0:00:30] White got outplayed after the opening.  Weighted Error Value: White=0.11 (very precise) /Black=0.07 (flawless)} 1/2-1/2

[Event "34th Pula Open 2022"]
[Site "Pula"]
[Date "2022.06.22"]
[Round "6.8"]
[White "Dahl, Trygve"]
[Black "Ragger, Anna-Christina"]
[Result "1/2-1/2"]
[ECO "B17"]
[WhiteElo "2237"]
[BlackElo "2141"]
[Annotator "TA"]
[PlyCount "64"]
[EventDate "2022.06.18"]
[EventType "swiss"]
[EventCountry "CRO"]
[SourceTitle "playchess.com"]
[Source "ChessBase"]
[SourceQuality "1"]
[TimeControl "5400+30"]

{[%evp 15,64,15,28,13,24,10,20,10,8,10,10,12,11,11,24,9,7,7,5,0,0,0,7,7,7,7,7,7,8,7,7,0,0,-4,0,0,0,0,0,0,0,0,0,-8,-8,-8,-13,-19,-23,-25,0]} 1. e4 {[%emt 0:00:03]} c6 {[%emt 0:00:04]} 2. d4 {[%emt 0:03:30]} d5 {[%emt 0:00:05]} 3. Nc3 {[%emt 0:00:03]} dxe4 {[%emt 0:00:07]} 4. Nxe4 {[%emt 0:00:03]} Nd7 {[%emt 0:00:12]} 5. Nf3 {[%emt 0:03:43]} Ngf6 {[%emt 0:00:15]} 6. Nxf6+ {[%emt 0:01:03]} Nxf6 {[%emt 0:00:07]} 7. c3 {[%emt 0:03:29]} Bg4 {[%emt 0:03:02]} 8. Be2 {[%emt 0:01:11]} e6 {[%emt 0:00:42]} 9. h3 {[%emt 0:04:33] B17: Caro-Kann: Modern Line (4...Nd7).} Bh5 {[%emt 0:02:23]} 10. Bf4 {[%emt 0:00:20]} Bd6 {[%emt 0:01:46]} 11. Bxd6 {[%emt 0:01:42] The position is equal.} Qxd6 {[%emt 0:00:09]} 12. O-O {[%emt 0:00:10]} O-O {[%emt 0:02:31]} 13. Ne5 {[%emt 0:08:27]} Bxe2 {[%emt 0:02:53]} 14. Qxe2 {[%emt 0:00:03]} c5 {[%emt 0:13:04] [#]} 15. dxc5 $146 {[%emt 0:10:19]} ({Predecessor:} 15. Rad1 Rad8 16. dxc5 Qxc5 17. Rxd8 Rxd8 18. Rd1 Rd5 19. c4 Rd4 20. Rxd4 Qxd4 21. Qd3 Qxd3 22. Nxd3 {½-½ (45) Chekhov,S (2458)-Maletin,P (2579) Voronezh 2016}) 15... Qxc5 {[%emt 0:00:37]} 16. c4 {[%emt 0:00:10]} Rfd8 {[%emt 0:01:36]} 17. Rfd1 {[%emt 0:00:18]} h6 {[%emt 0:02:21]} 18. Rac1 {[%emt 0:02:45]} Qa5 {[%emt 0:08:48]} 19. a3 {[%emt 0:02:30]} Rxd1+ {[%emt 0:02:17]} 20. Rxd1 {[%emt 0:00:06]} Rd8 {[%emt 0:00:33]} 21. Rxd8+ {[%emt 0:02:52]} Qxd8 $11 {[%emt 0:00:05][%mdl 4096] Endgame KQN-KQN} 22. Nf3 {[%emt 0:00:21]} Qd6 {[%emt 0:14:57]} 23. g3 {[%emt 0:08:40]} a5 {[%emt 0:02:20]} 24. Kg2 {[%emt 0:02:44]} Nd7 {[%emt 0:03:05]} 25. Qd2 {[%emt 0:02:58]} Qxd2 {[%emt 0:03:02]} 26. Nxd2 {[%emt 0:00:06] KN-KN} a4 {[%emt 0:02:34]} 27. f4 {[%emt 0:06:22]} Kf8 {[%emt 0:08:58]} 28. Kf3 {[%emt 0:00:00]} Ke7 {[%emt 0:00:04]} 29. Ke4 {[%emt 0:01:01]} Kd6 {[%emt 0:00:07]} 30. Kd4 {[%emt 0:00:52]} Nc5 {[%emt 0:02:04]} 31. Nf3 {[%emt 0:01:43]} f6 {[%emt 0:00:15]} 32. Nd2 {[%emt 0:01:05]} h5 {[%emt 0:02:08] A rather calm draw.  Weighted Error Value: White=0.04 (flawless) /Black=0.02 (flawless)} 1/2-1/2

[Event "34th Pula Open 2022"]
[Site "Pula"]
[Date "2022.06.22"]
[Round "6.9"]
[White "Vatter, Hans-Joachim"]
[Black "Lindgren, Philip"]
[Result "0-1"]
[ECO "B13"]
[WhiteElo "2195"]
[BlackElo "2369"]
[Annotator "TA"]
[PlyCount "78"]
[EventDate "2022.06.18"]
[EventType "swiss"]
[EventCountry "CRO"]
[SourceTitle "playchess.com"]
[Source "ChessBase"]
[SourceQuality "1"]
[TimeControl "5400+30"]

{[%evp 13,78,21,17,14,30,30,30,24,29,22,21,8,31,25,29,23,19,0,31,5,13,15,13,-4,47,0,0,0,-6,-10,-14,-18,-12,-6,-26,-25,-47,-44,-62,-243,-243,-245,-247,-369,-368,-362,-357,-433,-428,-428,-412,-402,-373,-335,-224,-667,-654,-1028,-1030,-913,-904,-870,-649,-808,-847,-1782,-1575]} 1. e4 {[%emt 0:00:04]} c6 {[%emt 0:00:05]} 2. d4 {[%emt 0:00:30]} d5 {[%emt 0:00:30]} 3. exd5 {[%emt 0:00:30]} cxd5 {[%emt 0:00:00]} 4. Bd3 {[%emt 0:00:10]} Nc6 {[%emt 0:00:25]} 5. c3 {[%emt 0:00:03]} Qc7 {[%emt 0:02:05]} 6. h3 {[%emt 0:00:15]} Nf6 {[%emt 0:02:50] 6...g6 gains popularity.} 7. Nf3 {[%emt 0:00:34]} g6 {[%emt 0:00:55]} 8. Qc2 {[%emt 0:00:47] B13: Caro-Kann: Exchange Variation and Panov-Botvinnik Attack.} Bg7 {[%emt 0:02:54]} 9. O-O {[%emt 0:00:12]} O-O {[%emt 0:07:55]} 10. Re1 {[%emt 0:02:52] White has an edge.} Nd7 {[%emt 0:07:19]} 11. Na3 {[%emt 0:21:57]} a6 {[%emt 0:03:33] [#]} 12. Qb3 $146 {[%emt 0:01:09]} ({Predecessor:} 12. Qd1 e5 13. dxe5 {½-½ (13) Parkanyi,A (2275)-Csonka,A (2347) Hungary 2019}) 12... Nb6 {[%emt 0:09:06]} 13. Nc2 {[%emt 0:03:40]} Na5 {[%emt 0:02:54]} 14. Qb4 {[%emt 0:01:27]} Nc6 {[%emt 0:00:31]} 15. Qb3 {[%emt 0:03:35]} Re8 {[%emt 0:05:31]} (15... Na5 $5 {[%cal Ra5b3]} 16. Qa3 Nc6 $14) 16. Nb4 {[%emt 0:03:36]} Nxb4 {[%emt 0:14:03]} 17. Qxb4 {[%emt 0:01:10]} Nc4 {[%emt 0:03:30] Prevents Ne5.} 18. Qb3 {[%emt 0:06:02]} Bf5 {[%emt 0:02:18]} (18... f6 $11) 19. Qc2 {[%emt 0:01:52]} (19. Bxf5 $14 gxf5 20. Qd1) 19... Bxd3 $11 {[%emt 0:03:47]} 20. Qxd3 {[%emt 0:00:02]} Rac8 {[%emt 0:02:07]} 21. Re2 {[%emt 0:04:18]} b5 {[%emt 0:02:49]} 22. a4 {[%emt 0:04:29]} Qa5 {[%emt 0:02:35]} 23. b3 {[%emt 0:16:53]} (23. b4 $5 {[%cal Rb4a5]} Qb6 24. Bf4 $11) 23... Nd6 {[%emt 0:00:12]} 24. b4 {[%emt 0:00:29]} Qb6 {[%emt 0:04:27]} 25. Ne5 {[%emt 0:04:24]} bxa4 {[%emt 0:04:25]} 26. Rea2 $2 {[%emt 0:12:06] Loses the game.} (26. Rxa4 $15 Bxe5 27. dxe5) 26... Ne4 $19 {[%emt 0:06:21]} 27. Rxa4 {[%emt 0:03:23]} Rxc3 {[%emt 0:01:13]} ({Worse is} 27... Bxe5 28. Rxa6 Bh2+ 29. Kxh2 Qb8+ 30. Kg1 $17) 28. Rxa6 {[%emt 0:01:35]} (28. Qf1 {is the only way for White.}) 28... Rxd3 {[%emt 0:06:04][%cal Bc3d3,Bd3d4,Bd4d1,Bd1a1][%mdl 32]} 29. Rxb6 {[%emt 0:00:02]} Rxd4 {[%emt 0:01:28]} 30. f4 {[%emt 0:00:39]} Rd1+ {[%emt 0:00:38]} 31. Kh2 {[%emt 0:00:01]} Bh6 {[%emt 0:01:26]} 32. g3 {[%emt 0:01:03]} f6 {[%emt 0:01:55]} 33. Nc6 {[%emt 0:00:55]} e5 {[%emt 0:00:16] [#] aiming for ...exf4.} 34. Rb7 $2 {[%emt 0:02:19]} (34. Rba6) 34... exf4 {[%emt 0:00:23] Black is clearly winning.} 35. Bxf4 {[%emt 0:00:21]} Rxa1 {[%emt 0:00:28]} 36. Bxh6 {[%emt 0:00:02]} Ra2+ {[%emt 0:00:48]} 37. Kg1 {[%emt 0:00:15]} Nd6 {[%emt 0:00:41][%cal Re8e1] [#]} 38. Rg7+ {[%emt 0:01:19]} Kh8 {[%emt 0:00:12][%cal Re8e1]} 39. Kf1 {[%emt 0:00:52] Against Re1+} Nf5 {[%emt 0:00:26][%csl LRg3,LRg7,LRh6] Weighted Error Value: White=0.76/Black=0.16 (very precise)} 0-1